[Event "GrandPrix_29.05"]
[Site "Chess.com"]
[Date "2020.05.29"]
[Round "7"]
[White "klimkoj"]
[Black "Pultis"]
[Result "0-1"]
[WhiteElo "2109"]
[BlackElo "2261"]
[TimeControl "600+2"]
[EndTime "12:20:33 PDT"]
[Termination "Pultis won by resignation"]

1. e4 {[%clk 0:10:01.9]} 1... c6 {[%clk 0:09:59.4]} 2. d4 {[%clk 0:10:02.2]}
2... d5 {[%clk 0:10:00.1]} 3. exd5 {[%clk 0:10:02.2]} 3... cxd5 {[%clk
0:10:01.2]} 4. c4 {[%clk 0:10:03.6]} 4... Nf6 {[%clk 0:10:02]} 5. Nc3 {[%clk
0:10:04.3]} 5... Nc6 {[%clk 0:10:01.4]} 6. Nf3 {[%clk 0:10:04.5]} 6... e6 {[%clk
0:09:56.5]} 7. c5 {[%clk 0:10:04.7]} 7... Be7 {[%clk 0:09:47.7]} 8. Bb5 {[%clk
0:10:04.2]} 8... O-O {[%clk 0:09:49.6]} 9. O-O {[%clk 0:10:04.6]} 9... Bd7
{[%clk 0:09:49.9]} 10. Bxc6 {[%clk 0:10:04.6]} 10... Bxc6 {[%clk 0:09:51.8]} 11.
b4 {[%clk 0:10:03.9]} 11... Rc8 {[%clk 0:09:45.8]} 12. a4 {[%clk 0:09:50.7]}
12... Ne4 {[%clk 0:09:37.5]} 13. Bb2 {[%clk 0:09:50.7]} 13... f6 {[%clk
0:09:37.5]} 14. Re1 {[%clk 0:09:47.4]} 14... Qe8 {[%clk 0:09:02.8]} 15. b5
{[%clk 0:09:40.4]} 15... Nxc3 {[%clk 0:09:03.2]} 16. Bxc3 {[%clk 0:09:38.9]}
16... Bd7 {[%clk 0:09:05.1]} 17. Qd3 {[%clk 0:09:29.6]} 17... Qg6 {[%clk
0:08:42.7]} 18. Qxg6 {[%clk 0:09:22.7]} 18... hxg6 {[%clk 0:08:44.6]} 19. Rac1
{[%clk 0:08:54.3]} 19... Kf7 {[%clk 0:08:33.1]} 20. Re2 {[%clk 0:08:31.2]} 20...
g5 {[%clk 0:08:25.4]} 21. h3 {[%clk 0:08:26.8]} 21... Rfe8 {[%clk 0:08:19.3]}
22. g4 {[%clk 0:08:14.6]} 22... a6 {[%clk 0:07:53.6]} 23. Rb2 {[%clk 0:08:08.5]}
23... axb5 {[%clk 0:07:54.7]} 24. axb5 {[%clk 0:08:08.8]} 24... e5 {[%clk
0:07:53.4]} 25. Kg2 {[%clk 0:07:48.5]} 25... e4 {[%clk 0:07:29.6]} 26. Nh2
{[%clk 0:07:43.3]} 26... Ra8 {[%clk 0:07:24.6]} 27. Nf1 {[%clk 0:07:38.2]} 27...
g6 {[%clk 0:07:09]} 28. Ne3 {[%clk 0:07:37]} 28... Be6 {[%clk 0:07:09.3]} 29. c6
{[%clk 0:06:44.9]} 29... Ba3 {[%clk 0:07:07.6]} 30. c7 {[%clk 0:06:25.2]} 30...
b6 {[%clk 0:07:08]} 31. Rcc2 {[%clk 0:06:13.8]} 31... Bxb2 {[%clk 0:07:06.7]}
32. Rxb2 {[%clk 0:06:14.4]} 32... Rec8 {[%clk 0:07:06.2]} 33. Bb4 {[%clk
0:06:12]} 33... Rxc7 {[%clk 0:07:07.5]} 34. Bd6 {[%clk 0:06:09.8]} 34... Rc1
{[%clk 0:07:07.7]} 35. Kg3 {[%clk 0:06:06.5]} 35... Rg1+ {[%clk 0:07:03.2]} 36.
Kh2 {[%clk 0:06:06.9]} 36... Raa1 {[%clk 0:07:00.7]} 37. Bc7 {[%clk 0:06:07]}
37... Rh1+ {[%clk 0:06:53.4]} 38. Kg3 {[%clk 0:06:07.7]} 38... Rag1+ {[%clk
0:06:45]} 39. Ng2 {[%clk 0:06:07.5]} 39... f5 {[%clk 0:06:43.8]} 40. f3 {[%clk
0:06:01.4]} 40... f4+ {[%clk 0:06:41.1]} 41. Bxf4 {[%clk 0:05:56.9]} 41... gxf4+
{[%clk 0:06:38.5]} 42. Kxf4 {[%clk 0:05:58.8]} 42... Rf1 {[%clk 0:06:36.9]} 43.
Nh4 {[%clk 0:05:55]} 43... Rxh3 {[%clk 0:06:36.2]} 44. Kg5 {[%clk 0:05:54]} 0-1

[Event "GrandPrix_29.05"]
[Site "Chess.com"]
[Date "2020.05.29"]
[Round "7"]
[White "RaphaeI"]
[Black "Dolphin_2010"]
[Result "1-0"]
[WhiteElo "2303"]
[BlackElo "2124"]
[TimeControl "600+2"]
[EndTime "12:20:38 PDT"]
[Termination "RaphaeI won by resignation"]

1. e4 {[%clk 0:10:01.9]} 1... c6 {[%clk 0:10:00.3]} 2. Nf3 {[%clk 0:10:02]} 2...
d5 {[%clk 0:10:02.2]} 3. Nc3 {[%clk 0:10:03.2]} 3... dxe4 {[%clk 0:10:01.9]} 4.
Nxe4 {[%clk 0:10:03.9]} 4... Nf6 {[%clk 0:10:03.4]} 5. Qe2 {[%clk 0:10:05.5]}
5... Nxe4 {[%clk 0:10:03.4]} 6. Qxe4 {[%clk 0:10:07.4]} 6... Qd5 {[%clk
0:10:04.3]} 7. Qf4 {[%clk 0:10:04.2]} 7... Qf5 {[%clk 0:10:02.1]} 8. Qe3 {[%clk
0:10:05]} 8... Qe6 {[%clk 0:09:55.6]} 9. b3 {[%clk 0:10:05.2]} 9... Qxe3+ {[%clk
0:09:55.9]} 10. fxe3 {[%clk 0:10:07.1]} 10... a5 {[%clk 0:09:54.1]} 11. a3
{[%clk 0:09:36.4]} 11... f6 {[%clk 0:09:51.6]} 12. Bb2 {[%clk 0:09:33.3]} 12...
e5 {[%clk 0:09:52]} 13. O-O-O {[%clk 0:09:26.8]} 13... Bg4 {[%clk 0:09:45.6]}
14. h3 {[%clk 0:09:20.4]} 14... Be6 {[%clk 0:09:45.4]} 15. g4 {[%clk 0:09:13.3]}
15... b5 {[%clk 0:09:32.6]} 16. d4 {[%clk 0:08:25.1]} 16... Bd5 {[%clk
0:09:16.1]} 17. Bg2 {[%clk 0:08:24.4]} 17... exd4 {[%clk 0:08:53.5]} 18. e4
{[%clk 0:08:25.3]} 18... Bf7 {[%clk 0:08:37.6]} 19. Nxd4 {[%clk 0:08:26.4]}
19... Bd6 {[%clk 0:08:35.4]} 20. e5 {[%clk 0:07:49.9]} 20... Bxe5 {[%clk
0:08:32.5]} 21. Nxc6 {[%clk 0:07:51]} 21... Bxb2+ {[%clk 0:08:28.5]} 22. Kxb2
{[%clk 0:07:52.9]} 22... Na6 {[%clk 0:07:42.4]} 23. Rhe1+ {[%clk 0:06:20.3]}
23... Kf8 {[%clk 0:07:36.2]} 24. Nb4 {[%clk 0:06:18.9]} 24... axb4 {[%clk
0:07:09.2]} 25. Bxa8 {[%clk 0:06:17.5]} 25... bxa3+ {[%clk 0:07:11.1]} 26. Kxa3
{[%clk 0:06:16.8]} 26... b4+ {[%clk 0:07:07.3]} 27. Kb2 {[%clk 0:06:17.5]} 27...
Nc7 {[%clk 0:06:50.9]} 28. Rd7 {[%clk 0:06:01.1]} 28... Ne6 {[%clk 0:06:47.6]}
29. Bd5 {[%clk 0:04:42.4]} 1-0

[Event "GrandPrix_29.05"]
[Site "Chess.com"]
[Date "2020.05.29"]
[Round "7"]
[White "anesar92"]
[Black "PresidenteMNE"]
[Result "1-0"]
[WhiteElo "2379"]
[BlackElo "2361"]
[TimeControl "600+2"]
[EndTime "12:20:55 PDT"]
[Termination "anesar92 won by resignation"]

1. e4 {[%clk 0:10:01.9]} 1... d5 {[%clk 0:09:59.9]} 2. exd5 {[%clk 0:10:01.8]}
2... Nf6 {[%clk 0:10:01.1]} 3. d4 {[%clk 0:10:01.4]} 3... Bg4 {[%clk 0:10:01.8]}
4. Nf3 {[%clk 0:09:52.7]} 4... Qxd5 {[%clk 0:10:02.5]} 5. Be2 {[%clk 0:09:51.5]}
5... Nc6 {[%clk 0:10:03.1]} 6. O-O {[%clk 0:09:21]} 6... O-O-O {[%clk
0:10:03.2]} 7. c4 {[%clk 0:09:21.9]} 7... Qh5 {[%clk 0:10:03.9]} 8. Be3 {[%clk
0:09:14.5]} 8... e5 {[%clk 0:09:55.9]} 9. h3 {[%clk 0:08:29]} 9... Nxd4 {[%clk
0:09:03.4]} 10. Bxd4 {[%clk 0:07:49.3]} 10... exd4 {[%clk 0:08:55.1]} 11. hxg4
{[%clk 0:07:16]} 11... Nxg4 {[%clk 0:08:54.2]} 12. Qd2 {[%clk 0:07:08.8]} 12...
f6 {[%clk 0:08:20.8]} 13. Qf4 {[%clk 0:06:55.5]} 13... g5 {[%clk 0:04:52.6]} 14.
Nxg5 {[%clk 0:06:20]} 14... f5 {[%clk 0:04:36.9]} 15. Qxf5+ {[%clk 0:06:19.4]}
15... Kb8 {[%clk 0:04:24.4]} 16. Bxg4 {[%clk 0:06:04.4]} 16... Qh4 {[%clk
0:04:22.3]} 17. g3 {[%clk 0:05:59.4]} 17... Qh6 {[%clk 0:04:18.6]} 18. Nf7
{[%clk 0:05:59.5]} 18... Qd2 {[%clk 0:04:19.1]} 19. Nxd2 {[%clk 0:05:58.6]} 1-0

[Event "GrandPrix_29.05"]
[Site "Chess.com"]
[Date "2020.05.29"]
[Round "7"]
[White "metra93"]
[Black "SoltaniciR"]
[Result "0-1"]
[WhiteElo "2168"]
[BlackElo "2144"]
[TimeControl "600+2"]
[EndTime "12:20:58 PDT"]
[Termination "SoltaniciR won by resignation"]

1. e4 {[%clk 0:09:52.5]} 1... c5 {[%clk 0:09:57.8]} 2. Nf3 {[%clk 0:09:52.4]}
2... d6 {[%clk 0:09:51.1]} 3. d4 {[%clk 0:09:53.2]} 3... cxd4 {[%clk 0:09:48.3]}
4. Qxd4 {[%clk 0:09:55.1]} 4... Nc6 {[%clk 0:09:43.1]} 5. Bb5 {[%clk 0:09:55.4]}
5... Bd7 {[%clk 0:09:44.2]} 6. Bxc6 {[%clk 0:09:56]} 6... Bxc6 {[%clk 0:09:45]}
7. Nc3 {[%clk 0:09:57.1]} 7... h6 {[%clk 0:09:45.9]} 8. Be3 {[%clk 0:08:58.8]}
8... e5 {[%clk 0:09:44.9]} 9. Qc4 {[%clk 0:08:53.1]} 9... Nf6 {[%clk 0:07:37]}
10. O-O-O {[%clk 0:08:51.9]} 10... Qa5 {[%clk 0:07:25.3]} 11. Rhg1 {[%clk
0:07:56]} 11... Rc8 {[%clk 0:07:13.1]} 12. g4 {[%clk 0:07:40.8]} 12... b5 {[%clk
0:07:09.6]} 13. Qb3 {[%clk 0:04:16.7]} 13... b4 {[%clk 0:07:04.4]} 14. g5 {[%clk
0:04:08.7]} 14... bxc3 {[%clk 0:06:41.7]} 15. gxf6 {[%clk 0:04:07.9]} 15...
cxb2+ {[%clk 0:06:37.3]} 16. Qxb2 {[%clk 0:04:05.2]} 16... gxf6 {[%clk
0:06:35.9]} 0-1

[Event "GrandPrix_29.05"]
[Site "Chess.com"]
[Date "2020.05.29"]
[Round "7"]
[White "bsnsun"]
[Black "LANCELOT96"]
[Result "0-1"]
[WhiteElo "1902"]
[BlackElo "2116"]
[TimeControl "600+2"]
[EndTime "12:21:09 PDT"]
[Termination "LANCELOT96 won by resignation"]

1. Nf3 {[%clk 0:10:01.9]} 1... c6 {[%clk 0:08:36.3]} 2. c4 {[%clk 0:10:01.7]}
2... d5 {[%clk 0:08:35.4]} 3. g3 {[%clk 0:10:03]} 3... dxc4 {[%clk 0:08:36.2]}
4. Bg2 {[%clk 0:10:03.7]} 4... b5 {[%clk 0:08:37.8]} 5. O-O {[%clk 0:09:58.8]}
5... Bb7 {[%clk 0:08:38.8]} 6. a4 {[%clk 0:09:51.2]} 6... Nd7 {[%clk 0:08:36.9]}
7. d3 {[%clk 0:08:54.5]} 7... cxd3 {[%clk 0:08:37.6]} 8. Qxd3 {[%clk 0:08:50.4]}
8... a6 {[%clk 0:08:37.7]} 9. Nc3 {[%clk 0:08:08.7]} 9... e6 {[%clk 0:08:37.1]}
10. Ne4 {[%clk 0:07:43.5]} 10... Ngf6 {[%clk 0:08:35.3]} 11. Nd6+ {[%clk
0:07:36]} 11... Bxd6 {[%clk 0:08:35.8]} 12. Qxd6 {[%clk 0:07:37.1]} 12... Nb6
{[%clk 0:08:33.1]} 13. Qxd8+ {[%clk 0:06:54.5]} 13... Rxd8 {[%clk 0:08:31.8]}
14. axb5 {[%clk 0:06:08.3]} 14... cxb5 {[%clk 0:08:31.5]} 15. Be3 {[%clk
0:06:09.5]} 15... Nc4 {[%clk 0:08:24.2]} 16. Bd4 {[%clk 0:06:01.5]} 16... Bxf3
{[%clk 0:08:18.8]} 17. Bxf6 {[%clk 0:05:56.8]} 17... Bxg2 {[%clk 0:08:19.4]} 18.
Bxd8 {[%clk 0:05:53.4]} 18... Bxf1 {[%clk 0:08:20.8]} 19. Rxa6 {[%clk
0:05:44.2]} 19... Bxe2 {[%clk 0:08:19.1]} 20. b3 {[%clk 0:05:29.8]} 20... Ne5
{[%clk 0:08:08.3]} 21. f4 {[%clk 0:05:16.8]} 21... Nc6 {[%clk 0:07:55]} 22. Kf2
{[%clk 0:04:51.6]} 22... Kd7 {[%clk 0:07:23.6]} 23. Bb6 {[%clk 0:04:42.7]} 23...
Bd1 {[%clk 0:07:20]} 24. b4 {[%clk 0:04:36.8]} 24... Nxb4 {[%clk 0:06:40.1]} 25.
Ra7+ {[%clk 0:04:37.3]} 25... Kc6 {[%clk 0:06:41.3]} 26. Bd4 {[%clk 0:04:37.1]}
26... Rd8 {[%clk 0:06:33.7]} 27. Bxg7 {[%clk 0:04:36.6]} 27... Rd7 {[%clk
0:06:34.2]} 28. Ra8 {[%clk 0:04:31.8]} 28... Nd5 {[%clk 0:06:33.7]} 29. Rh8
{[%clk 0:04:29]} 29... b4 {[%clk 0:06:34.5]} 30. Rxh7 {[%clk 0:04:28.6]} 30...
f6 {[%clk 0:06:35.6]} 31. h4 {[%clk 0:04:26.7]} 31... b3 {[%clk 0:06:36.7]} 0-1

[Event "GrandPrix_29.05"]
[Site "Chess.com"]
[Date "2020.05.29"]
[Round "7"]
[White "Supernotar"]
[Black "Koalaskakistis"]
[Result "1-0"]
[WhiteElo "2118"]
[BlackElo "2017"]
[TimeControl "600+2"]
[EndTime "12:21:12 PDT"]
[Termination "Supernotar won by resignation"]

1. d4 {[%clk 0:10:01.9]} 1... f5 {[%clk 0:09:58]} 2. c4 {[%clk 0:10:02.3]} 2...
Nf6 {[%clk 0:09:59]} 3. Nf3 {[%clk 0:10:02.9]} 3... e6 {[%clk 0:09:58.7]} 4. g3
{[%clk 0:10:04.1]} 4... Be7 {[%clk 0:09:59.3]} 5. Bg2 {[%clk 0:10:05.5]} 5...
O-O {[%clk 0:10:01.2]} 6. O-O {[%clk 0:10:06.5]} 6... d6 {[%clk 0:10:03.1]} 7.
Nc3 {[%clk 0:10:06.3]} 7... Ne4 {[%clk 0:10:02.9]} 8. Nxe4 {[%clk 0:09:58.3]}
8... fxe4 {[%clk 0:10:03]} 9. Nd2 {[%clk 0:09:59.4]} 9... d5 {[%clk 0:10:03.5]}
10. f3 {[%clk 0:09:58.1]} 10... e3 {[%clk 0:10:04.3]} 11. Nb1 {[%clk 0:09:58.5]}
11... c5 {[%clk 0:10:05.5]} 12. Bxe3 {[%clk 0:09:57.6]} 12... cxd4 {[%clk
0:10:06.5]} 13. Bxd4 {[%clk 0:09:51.9]} 13... e5 {[%clk 0:10:07.8]} 14. Bxe5
{[%clk 0:09:43.6]} 14... Nc6 {[%clk 0:10:06.1]} 15. Bf4 {[%clk 0:09:17.6]} 15...
Qb6+ {[%clk 0:10:03.8]} 16. Kh1 {[%clk 0:09:18.1]} 16... Qxb2 {[%clk 0:10:00.3]}
17. Qxd5+ {[%clk 0:09:11.5]} 17... Kh8 {[%clk 0:09:42.6]} 18. Nd2 {[%clk
0:09:04.8]} 18... Bf6 {[%clk 0:08:43]} 19. Ne4 {[%clk 0:08:23.5]} 19... Qxa1
{[%clk 0:08:40.2]} 20. Rxa1 {[%clk 0:08:23.8]} 20... Bxa1 {[%clk 0:08:42.1]} 21.
Nd6 {[%clk 0:08:21.7]} 21... Nd8 {[%clk 0:08:39]} 22. e4 {[%clk 0:07:43]} 22...
Be6 {[%clk 0:08:38.3]} 23. Qh5 {[%clk 0:07:32.4]} 23... g6 {[%clk 0:08:34.9]}
24. Be5+ {[%clk 0:07:32.5]} 24... Kg8 {[%clk 0:08:33.5]} 25. Qg5 {[%clk
0:07:32]} 25... Bxe5 {[%clk 0:08:19.1]} 26. Qxe5 {[%clk 0:07:21.7]} 26... Bf7
{[%clk 0:08:19.2]} 27. Bh3 {[%clk 0:07:09.6]} 27... Nc6 {[%clk 0:08:13.7]} 28.
Qc5 {[%clk 0:07:04.2]} 28... Rad8 {[%clk 0:08:08.4]} 29. e5 {[%clk 0:06:47.4]}
29... g5 {[%clk 0:07:50.9]} 30. e6 {[%clk 0:06:28.2]} 30... Bg6 {[%clk
0:07:50.7]} 31. Bg4 {[%clk 0:06:08.2]} 31... Ne7 {[%clk 0:07:32.6]} 32. Qc7
{[%clk 0:05:50.9]} 32... h5 {[%clk 0:07:24]} 33. Bh3 {[%clk 0:05:22.9]} 33... g4
{[%clk 0:07:07.4]} 34. fxg4 {[%clk 0:05:15.5]} 34... Nc8 {[%clk 0:06:42.7]} 35.
e7 {[%clk 0:04:51.4]} 1-0

[Event "GrandPrix_29.05"]
[Site "Chess.com"]
[Date "2020.05.29"]
[Round "7"]
[White "jncool68"]
[Black "Sanan_Sjugirov"]
[Result "0-1"]
[WhiteElo "2301"]
[BlackElo "2724"]
[TimeControl "600+2"]
[EndTime "12:22:26 PDT"]
[Termination "Sanan_Sjugirov won by resignation"]

1. e4 {[%clk 0:10:01.9]} 1... c6 {[%clk 0:10:00]} 2. Nc3 {[%clk 0:10:00.9]} 2...
d5 {[%clk 0:10:01.4]} 3. Nf3 {[%clk 0:10:01.5]} 3... Bg4 {[%clk 0:10:02.2]} 4.
h3 {[%clk 0:10:01.9]} 4... Bxf3 {[%clk 0:10:03.3]} 5. Qxf3 {[%clk 0:10:02.6]}
5... e6 {[%clk 0:10:04.9]} 6. Be2 {[%clk 0:10:03]} 6... Bc5 {[%clk 0:10:02.3]}
7. O-O {[%clk 0:10:02]} 7... Nd7 {[%clk 0:09:58.1]} 8. exd5 {[%clk 0:09:50.1]}
8... cxd5 {[%clk 0:09:57.1]} 9. Qg4 {[%clk 0:09:46.6]} 9... g6 {[%clk
0:09:37.9]} 10. d4 {[%clk 0:09:45.5]} 10... Ngf6 {[%clk 0:09:33.9]} 11. Qh4
{[%clk 0:09:46.1]} 11... Be7 {[%clk 0:09:30.6]} 12. Qg3 {[%clk 0:09:44.3]} 12...
O-O {[%clk 0:09:21.1]} 13. Bd3 {[%clk 0:09:37.8]} 13... a6 {[%clk 0:09:17.9]}
14. Ne2 {[%clk 0:09:38.6]} 14... Ne8 {[%clk 0:09:03.8]} 15. c3 {[%clk
0:09:37.8]} 15... Bd6 {[%clk 0:08:58.1]} 16. Nf4 {[%clk 0:09:13.8]} 16... Nef6
{[%clk 0:08:46.3]} 17. Qf3 {[%clk 0:09:09.1]} 17... Re8 {[%clk 0:08:40.2]} 18.
Re1 {[%clk 0:09:05.8]} 18... Rc8 {[%clk 0:08:02.9]} 19. Bd2 {[%clk 0:08:58]}
19... Nb6 {[%clk 0:07:44.5]} 20. Re2 {[%clk 0:08:52.1]} 20... Nc4 {[%clk
0:07:42.4]} 21. Bxc4 {[%clk 0:08:52.5]} 21... Rxc4 {[%clk 0:07:40.1]} 22. Rae1
{[%clk 0:08:53.2]} 22... Ne4 {[%clk 0:07:36.1]} 23. Bc1 {[%clk 0:08:52.9]} 23...
Rc8 {[%clk 0:07:33.6]} 24. Nd3 {[%clk 0:08:53.3]} 24... Qf6 {[%clk 0:07:19.1]}
25. Bf4 {[%clk 0:07:59.2]} 25... Bxf4 {[%clk 0:07:09.2]} 26. Nxf4 {[%clk
0:07:59.8]} 26... b5 {[%clk 0:07:02.2]} 27. a3 {[%clk 0:07:53.8]} 27... a5
{[%clk 0:06:41.6]} 28. Qg4 {[%clk 0:07:45]} 28... b4 {[%clk 0:06:26.4]} 29. axb4
{[%clk 0:07:45.5]} 29... axb4 {[%clk 0:06:28.3]} 30. f3 {[%clk 0:07:46.8]} 30...
Nd6 {[%clk 0:06:15.4]} 31. cxb4 {[%clk 0:07:26.5]} 31... Qxd4+ {[%clk
0:05:58.3]} 32. Kh1 {[%clk 0:07:27.2]} 32... Rc4 {[%clk 0:05:50.8]} 33. Nh5
{[%clk 0:06:49.4]} 33... Kf8 {[%clk 0:05:29.5]} 34. Qxd4 {[%clk 0:06:46.8]}
34... Rxd4 {[%clk 0:05:31.4]} 35. Nf6 {[%clk 0:06:47.6]} 35... Rc8 {[%clk
0:05:13.8]} 36. Nxh7+ {[%clk 0:06:45.4]} 36... Kg7 {[%clk 0:05:13.9]} 37. Ng5
{[%clk 0:06:46.2]} 37... Rxb4 {[%clk 0:05:03.9]} 38. g3 {[%clk 0:06:42.4]} 38...
Rcb8 {[%clk 0:04:55.4]} 39. Rc2 {[%clk 0:06:41.5]} 39... R8b7 {[%clk 0:04:31.4]}
40. Rc6 {[%clk 0:06:30.9]} 40... Nf5 {[%clk 0:04:23.2]} 41. g4 {[%clk
0:06:31.8]} 41... Nd4 {[%clk 0:04:20.4]} 42. Rc8 {[%clk 0:06:30.1]} 42... Rxb2
{[%clk 0:04:18.7]} 43. h4 {[%clk 0:06:29.9]} 43... Rd2 {[%clk 0:04:14.1]} 0-1

[Event "GrandPrix_29.05"]
[Site "Chess.com"]
[Date "2020.05.29"]
[Round "7"]
[White "bernereremit"]
[Black "Ave_Mariia"]
[Result "1-0"]
[WhiteElo "2181"]
[BlackElo "2150"]
[TimeControl "600+2"]
[EndTime "12:22:29 PDT"]
[Termination "bernereremit won by resignation"]

1. e4 {[%clk 0:09:57.5]} 1... c5 {[%clk 0:10:00.3]} 2. Nc3 {[%clk 0:09:58.1]}
2... d6 {[%clk 0:09:55.3]} 3. Nf3 {[%clk 0:09:59]} 3... Nf6 {[%clk 0:09:50.2]}
4. d4 {[%clk 0:10:00.2]} 4... cxd4 {[%clk 0:09:51.2]} 5. Nxd4 {[%clk 0:10:02.1]}
5... g6 {[%clk 0:09:52.5]} 6. Bc4 {[%clk 0:09:51.9]} 6... Bg7 {[%clk 0:09:52.9]}
7. f3 {[%clk 0:09:50.7]} 7... Nc6 {[%clk 0:09:51.7]} 8. Be3 {[%clk 0:09:50]}
8... O-O {[%clk 0:09:51.5]} 9. Bb3 {[%clk 0:09:51.3]} 9... Bd7 {[%clk
0:09:50.4]} 10. h4 {[%clk 0:09:50.6]} 10... Ne5 {[%clk 0:09:27.9]} 11. h5 {[%clk
0:09:20.1]} 11... Nxh5 {[%clk 0:09:27]} 12. g4 {[%clk 0:09:05]} 12... Nf6 {[%clk
0:08:58.1]} 13. Qd2 {[%clk 0:09:03.5]} 13... b5 {[%clk 0:08:55.1]} 14. O-O-O
{[%clk 0:08:56.8]} 14... Nc4 {[%clk 0:08:51.9]} 15. Bxc4 {[%clk 0:08:55.6]}
15... bxc4 {[%clk 0:08:53.8]} 16. Nd5 {[%clk 0:07:31.7]} 16... e5 {[%clk
0:05:59.4]} 17. Nf5 {[%clk 0:06:54]} 17... Bxf5 {[%clk 0:05:45.8]} 18. gxf5
{[%clk 0:06:37.2]} 18... Nxd5 {[%clk 0:05:28.5]} 19. Qxd5 {[%clk 0:06:28.1]}
19... gxf5 {[%clk 0:05:13.9]} 20. Rdg1 {[%clk 0:06:03.8]} 20... f4 {[%clk
0:04:57.9]} 21. Bxf4 {[%clk 0:05:51.9]} 21... exf4 {[%clk 0:04:51.4]} 22. Qf5
{[%clk 0:04:58]} 22... Re8 {[%clk 0:04:27.6]} 23. Rxh7 {[%clk 0:04:47.4]} 1-0

[Event "GrandPrix_29.05"]
[Site "Chess.com"]
[Date "2020.05.29"]
[Round "7"]
[White "caspiwins"]
[Black "Nikithebest"]
[Result "1-0"]
[WhiteElo "2312"]
[BlackElo "2145"]
[TimeControl "600+2"]
[EndTime "12:22:30 PDT"]
[Termination "caspiwins won by resignation"]

1. e4 {[%clk 0:10:01.9]} 1... c5 {[%clk 0:10:00.5]} 2. Nf3 {[%clk 0:10:02.7]}
2... d6 {[%clk 0:10:01.1]} 3. d4 {[%clk 0:10:04.2]} 3... cxd4 {[%clk 0:10:01.8]}
4. Nxd4 {[%clk 0:10:06.1]} 4... Nf6 {[%clk 0:10:02.1]} 5. Nc3 {[%clk 0:10:07.5]}
5... a6 {[%clk 0:10:02.9]} 6. f3 {[%clk 0:10:08.8]} 6... e5 {[%clk 0:09:53]} 7.
Nb3 {[%clk 0:10:09.7]} 7... Be6 {[%clk 0:09:53.9]} 8. Be3 {[%clk 0:10:07.7]}
8... Be7 {[%clk 0:09:48.4]} 9. Qd2 {[%clk 0:10:07.4]} 9... O-O {[%clk
0:09:49.4]} 10. O-O-O {[%clk 0:10:08]} 10... Qc7 {[%clk 0:09:50.4]} 11. g4
{[%clk 0:09:58.5]} 11... Rc8 {[%clk 0:09:50.8]} 12. g5 {[%clk 0:09:59.5]} 12...
Nh5 {[%clk 0:09:51.4]} 13. f4 {[%clk 0:09:59]} 13... exf4 {[%clk 0:09:42.6]} 14.
Bxf4 {[%clk 0:10:00.9]} 14... Nxf4 {[%clk 0:09:39.7]} 15. Qxf4 {[%clk
0:10:02.8]} 15... Nd7 {[%clk 0:09:34.7]} 16. Nd4 {[%clk 0:10:01.5]} 16... Ne5
{[%clk 0:09:20.5]} 17. h4 {[%clk 0:09:50]} 17... Rf8 {[%clk 0:08:51.4]} 18. Bh3
{[%clk 0:09:44.5]} 18... Bc4 {[%clk 0:07:53]} 19. Kb1 {[%clk 0:09:26.3]} 19...
b5 {[%clk 0:07:43.5]} 20. Rhg1 {[%clk 0:09:01.1]} 20... b4 {[%clk 0:07:41.6]}
21. Nd5 {[%clk 0:09:02]} 21... Bxd5 {[%clk 0:07:42.3]} 22. exd5 {[%clk
0:09:03.9]} 22... g6 {[%clk 0:07:35.4]} 23. h5 {[%clk 0:08:57.3]} 23... a5
{[%clk 0:07:09]} 24. h6 {[%clk 0:08:51.3]} 24... a4 {[%clk 0:07:04.2]} 25. Rg3
{[%clk 0:08:43.8]} 25... a3 {[%clk 0:06:59.8]} 26. b3 {[%clk 0:08:21.1]} 26...
Ra5 {[%clk 0:06:05.5]} 27. Rf1 {[%clk 0:07:29.1]} 27... Rxd5 {[%clk 0:04:44.5]}
28. Ne6 {[%clk 0:07:28.2]} 28... Qb8 {[%clk 0:03:54.7]} 29. Nxf8 {[%clk
0:07:27.5]} 29... Bxf8 {[%clk 0:03:53.7]} 30. Re3 {[%clk 0:06:57.2]} 30... Rc5
{[%clk 0:03:23.1]} 31. Rxe5 {[%clk 0:06:46.4]} 1-0

[Event "GrandPrix_29.05"]
[Site "Chess.com"]
[Date "2020.05.29"]
[Round "7"]
[White "Gabix_94"]
[Black "kotmizer"]
[Result "1-0"]
[WhiteElo "2447"]
[BlackElo "2227"]
[TimeControl "600+2"]
[EndTime "12:22:57 PDT"]
[Termination "Gabix_94 won by resignation"]

1. d4 {[%clk 0:09:58.9]} 1... Nf6 {[%clk 0:09:56.9]} 2. c4 {[%clk 0:09:57.6]}
2... c5 {[%clk 0:09:57.9]} 3. Nf3 {[%clk 0:09:57]} 3... cxd4 {[%clk 0:09:57.8]}
4. Nxd4 {[%clk 0:09:58.9]} 4... e6 {[%clk 0:09:55.8]} 5. Nc3 {[%clk 0:09:57.8]}
5... Nc6 {[%clk 0:09:55.9]} 6. g3 {[%clk 0:09:53.6]} 6... Qb6 {[%clk 0:09:56.1]}
7. Nb3 {[%clk 0:09:45.3]} 7... Ne5 {[%clk 0:09:54.4]} 8. Bg2 {[%clk 0:09:42]}
8... Nxc4 {[%clk 0:09:49.7]} 9. O-O {[%clk 0:09:40.5]} 9... Be7 {[%clk 0:09:49]}
10. e4 {[%clk 0:09:29.7]} 10... d6 {[%clk 0:09:40.2]} 11. Qe2 {[%clk 0:09:19.7]}
11... Qb4 {[%clk 0:09:09.9]} 12. Nd4 {[%clk 0:08:52]} 12... O-O {[%clk
0:09:07.4]} 13. a3 {[%clk 0:08:27.8]} 13... Nxa3 {[%clk 0:06:48.3]} 14. Be3
{[%clk 0:08:10.2]} 14... e5 {[%clk 0:06:27.1]} 15. Nf5 {[%clk 0:07:48.8]} 15...
Bxf5 {[%clk 0:06:23.6]} 16. exf5 {[%clk 0:07:50.7]} 16... d5 {[%clk 0:06:22.9]}
17. Bg5 {[%clk 0:06:59.3]} 17... e4 {[%clk 0:02:45.2]} 18. Rxa3 {[%clk
0:06:50.2]} 18... Rfd8 {[%clk 0:02:39.6]} 19. Rd1 {[%clk 0:06:36]} 19... Qc5
{[%clk 0:02:32]} 20. Rb3 {[%clk 0:06:30.7]} 20... Rd7 {[%clk 0:02:08.1]} 21.
Bxf6 {[%clk 0:06:28.5]} 21... Bxf6 {[%clk 0:02:08.1]} 22. Nxe4 {[%clk 0:06:27]}
1-0